bitfinex-derivatives/quotes_SOLF0:USTF0_20250808
["timestamp","ask_amount","ask_price","bid_price","bid_amount"]
[1754677376423,8.7381,179.25,179.22,15.02802659]
[1754677376626,3.16,179.24,179.22,3.92159633]
[1754677376923,3.16,179.24,179.23,3.07]
[1754677377222,8.7384,179.24,179.23,3.07]
[1754677377420,3.16,179.23,179.22,3.07]
[1754677377724,3.16,179.22,179.2,145.47]
[1754677378323,0.03844856,179.24,179.23,3.07]
[1754677378723,0.03844856,179.24,179.23,6.99159633]
[1754677379522,3.16,179.31,179.24,3.07]
[1754677379822,3.16,179.31,179.3,6.99159633]
[1754677379823,5.5761,179.31,179.3,6.99159633]
[1754677380024,3.16,179.33,179.31,3.07]
[1754677380219,157.87138956,179.44,179.32,3.92159633]
[1754677380220,5.5754,179.34,179.32,3.92159633]
[1754677380424,3.16,179.35,179.31,3.92159633]
[1754677380623,3.16,179.35,179.27,3.92159633]
[1754677380624,3.16,179.34,179.27,3.92159633]
[1754677380918,3.92159633,179.35,179.25,142.44]
[1754677380919,3.16,179.33,179.29,3.92159633]
[1754677381122,3.92159633,179.39,179.3,3.07]
[1754677381320,8.7364,179.3,179.29,0.03657963]
[1754677381524,8.7364,179.3,179.28,6.99159633]
[1754677381719,8.7364,179.3,179.28,3.07]
[1754677381919,8.7367,179.29,179.28,3.10872354]
[1754677382116,8.7367,179.29,179.28,0.03872354]
[1754677384117,5.5765,179.3,179.28,3.10872354]
[1754677384431,5.5765,179.3,179.29,3.07]
[1754677384820,5.5761,179.31,179.28,0.03872354]
[1754677385022,3.16,179.32,179.29,3.07]
[1754677385222,3.16,179.32,179.3,3.07]
[1754677385422,8.736,179.32,179.31,3.07]
[1754677386930,5.5764,179.3,179.29,6.85159633]
[1754677387426,5.5767,179.29,179.28,0.03872354]
[1754677387627,3.24,179.34,179.28,2.96872354]
[1754677387827,3.24,179.34,179.28,2.93]
[1754677388027,3.24,179.34,179.21,142.4]
[1754677388028,5.5771,179.28,179.26,2.93]
[1754677388230,3.24,179.32,179.26,2.93]
[1754677388525,5.5764,179.3,179.29,0.04075011]
[1754677388828,8.8164,179.3,179.29,0.04075011]
[1754677390727,8.8164,179.3,179.29,5.011e-05]
[1754677390931,3.24,179.23,179.22,2.93]
[1754677391430,8.8182,179.25,179.23,2.93]
[1754677392129,8.8182,179.25,179.24,2.93]
[1754677393034,3.24,179.24,179.22,2.93]
[1754677393732,5.5786,179.23,179.22,2.93]
[1754677393924,0.0352878,179.26,179.21,2.93]
[1754677394333,5.5781,179.25,179.23,2.93]
[1754677394526,0.04021029,179.25,179.22,6.3914967]
[1754677394725,0.04021029,179.25,179.24,9.3214967]
[1754677394927,3.24,179.32,179.25,2.93]
[1754677395124,3.24,179.32,179.3,2.93]
[1754677395327,8.8158,179.32,179.31,2.93]
[1754677395931,3.24,179.35,179.31,2.93]
[1754677396237,3.24,179.35,179.3,6.3914967]
[1754677396238,3.24,179.39,179.33,2.93]
[1754677396427,12.4646887,179.4,179.3,0.04166877]
[1754677396623,374.6,179.41,179.31,2.93]
[1754677396624,3.24,179.37,179.31,2.93]
[1754677397028,5.5751,179.34,179.33,0.04082095]
[1754677397333,8.8151,179.34,179.33,0.04082095]
[1754677403031,8.8151,179.34,179.33,0.00633925]
[1754677404939,5.5751,179.34,179.33,2.93633925]
[1754677406930,5.5751,179.34,179.33,0.00633925]
[1754677407132,5.5761,179.31,179.3,2.93]
[1754677407543,8.8161,179.31,179.3,2.93]
[1754677408143,3.24,179.34,179.29,2.93]
[1754677408539,5.5759,179.32,179.29,8.5067]
[1754677408743,5.5759,179.32,179.3,2.93]
[1754677409341,5.5759,179.32,179.31,2.93]
[1754677409538,0.03998315,179.33,179.31,2.93]
[1754677410042,516.94,179.41,179.23,377.4]
[1754677410043,12.4646887,179.39,179.33,2.93]
[1754677410238,3.24,179.4,179.35,2.93]
[1754677410239,12.4646887,179.4,179.35,2.93]
[1754677410444,15.7046887,179.41,179.35,2.93]
[1754677410640,5.5742,179.37,179.36,2.93]
[1754677412739,5.574,179.38,179.36,2.93]
[1754677413341,3.24,179.41,179.36,2.93]
[1754677413539,15.7046887,179.46,179.4,2.93]
[1754677413850,5.572,179.45,179.43,2.93]
[1754677414243,3.24,179.46,179.44,2.93]
[1754677414549,8.8117,179.45,179.44,2.93]
[1754677414945,8.8124,179.43,179.42,6.84268093]
[1754677415242,8.8124,179.43,179.42,2.93]
[1754677415447,3.24,179.42,179.41,3.9503143]
[1754677415647,5.5727,179.42,179.41,6.8803143]
[1754677415844,3.24,179.45,179.42,2.93]
[1754677416046,12.4646887,179.49,179.44,3.91268093]
[1754677416244,3.21,179.47,179.45,3.24]
[1754677416449,12.4646887,179.49,179.45,3.24]
[1754677416450,3.21,179.49,179.45,3.24]
[1754677417057,5.5714,179.46,179.45,3.24]
[1754677417257,3.21,179.45,179.44,3.95027199]
[1754677417456,3.21,179.45,179.44,3.27759106]
[1754677418157,8.7817,179.45,179.44,0.03759106]
[1754677420356,8.7817,179.45,179.44,9.106e-05]
[1754677421359,8.7827,179.42,179.41,32.76]
[1754677421555,8.7827,179.42,179.41,29.52]
[1754677422059,8.7827,179.42,179.41,32.76]
[1754677422453,8.7827,179.42,179.41,29.52]
[1754677422855,8.7827,179.42,179.41,2.26534396]
[1754677423157,8.7827,179.42,179.41,4.396e-05]
[1754677425957,3.21,179.41,179.33,3.24]
[1754677426253,3.21,179.36,179.34,3.24]
[1754677426458,3.21,179.36,179.34,5.15]
[1754677426459,5.5748,179.35,179.34,5.15]
[1754677426653,5.5748,179.35,179.34,1.91]
[1754677426654,8.7848,179.35,179.34,1.91]
[1754677426964,8.7848,179.35,179.34,5.15]
[1754677427261,5.5746,179.36,179.35,3.24]
[1754677427661,5.5746,179.36,179.34,1.91]
[1754677427662,5.5748,179.35,179.34,1.91]
[1754677427862,8.7848,179.35,179.34,1.91]
[1754677428754,8.7848,179.35,179.34,5.15]
[1754677429363,5.5746,179.36,179.34,1.91]
[1754677429562,5.5746,179.36,179.35,3.24]
[1754677430356,3.21,179.38,179.37,3.24]
[1754677430561,3.21,179.38,179.34,5.15]
[1754677430754,5.5748,179.35,179.34,5.15]
[1754677430954,3.21,179.36,179.34,1.91]
[1754677431159,3.21,179.37,179.35,3.24]
[1754677431360,5.5746,179.36,179.35,3.24]
[1754677431859,5.5748,179.35,179.34,1.91]
[1754677432356,8.7848,179.35,179.34,1.91]
[1754677432564,8.7848,179.35,179.34,5.15]
[1754677432766,5.5748,179.35,179.34,5.15]
[1754677433060,3.21,179.38,179.35,3.24]
[1754677433465,5.5744,179.37,179.34,8.28894672]
[1754677433763,5.5744,179.37,179.36,3.24]
[1754677433951,5.574,179.38,179.36,3.24]
[1754677434157,0.04117032,179.39,179.36,6.37894672]
[1754677434357,0.04117032,179.39,179.38,9.61894672]
[1754677435355,0.04117032,179.39,179.37,0.04152922]
[1754677435561,0.04117032,179.39,179.37,3.28152922]
[1754677435859,3.21,179.38,179.37,0.04152922]
[1754677436163,8.7839,179.38,179.37,0.04152922]
[1754677436559,8.7839,179.38,179.37,3.28152922]
[1754677437062,5.5739,179.38,179.37,3.28152922]
[1754677439568,0.04117032,179.39,179.37,3.28152922]
[1754677439766,0.04117032,179.39,179.38,9.61894672]
[1754677440662,5.61477032,179.39,179.38,9.61894672]
[1754677440865,0.04117032,179.39,179.38,9.61894672]
[1754677441564,3.25117032,179.39,179.38,3.24]
[1754677441765,8.7839,179.38,179.37,3.28152922]
[1754677442168,0.04117032,179.39,179.37,3.28152922]
[1754677442365,5.61497032,179.39,179.37,3.28152922]
[1754677442670,5.61497032,179.39,179.38,3.91442744]
[1754677442863,5.61497032,179.39,179.38,7.15442744]
[1754677443564,5.61497032,179.39,179.38,3.24]
[1754677443761,8.82497032,179.39,179.38,3.24]
[1754677444064,5.61497032,179.39,179.38,3.24]
[1754677444869,5.61497032,179.39,179.38,7.15442744]
[1754677445274,8.82497032,179.39,179.38,7.15442744]
[1754677445572,5.61497032,179.39,179.38,7.15442744]
[1754677446373,0.04117032,179.39,179.38,7.15442744]
[1754677446867,8.69477032,179.39,179.38,7.15442744]
[1754677448070,8.69477032,179.39,179.38,3.24]
[1754677448267,0.04117032,179.39,179.37,3.29152922]
[1754677448471,3.08,179.38,179.37,3.29152922]
[1754677449372,8.6539,179.38,179.37,0.04152922]
[1754677450364,5.61487032,179.39,179.37,3.29152922]
[1754677450562,3.12117032,179.39,179.38,3.25]
[1754677452274,8.69477032,179.39,179.38,3.25]
[1754677452472,8.69477032,179.39,179.37,0.04152922]
[1754677452666,3.08,179.38,179.37,0.04152922]
[1754677452872,8.6539,179.38,179.37,3.29152922]
[1754677454377,8.6539,179.38,179.37,0.04152922]
[1754677459281,8.6545,179.36,179.35,2.922e-05]
[1754677459483,3.08,179.35,179.26,3.25]
[1754677459685,3.08,179.3,179.24,3.25]
[1754677459881,3.08,179.28,179.27,11.21]
[1754677460084,7.13114436,179.28,179.27,11.21]
[1754677460685,4.05114436,179.28,179.27,14.46]
[1754677461990,12.70814436,179.28,179.27,11.21]
[1754677462789,7.13114436,179.28,179.27,14.46]
[1754677462983,4.05114436,179.28,179.27,14.46]
[1754677466790,4.05114436,179.28,179.27,20.0373]
[1754677467187,9.37180336,179.33,179.27,11.21]
[1754677467490,3.08,179.34,179.33,3.25]
[1754677467881,9.37180336,179.35,179.32,9.48992744]
[1754677468078,12.45180336,179.35,179.34,3.25]
[1754677468286,18.02680336,179.35,179.32,3.91442744]
[1754677468479,9.37180336,179.36,179.34,3.91442744]
[1754677468783,12.49272977,179.36,179.34,3.91442744]
[1754677468983,12.49272977,179.36,179.34,9.48932744]
[1754677469489,5.5748,179.35,179.33,3.91442744]
[1754677469690,8.6548,179.35,179.32,5.5755]
[1754677469990,3.08,179.34,179.33,3.91442744]
[1754677470189,3.08,179.34,179.33,7.16442744]
[1754677470393,18.06732977,179.36,179.34,3.25]
[1754677470690,14.98732977,179.36,179.34,3.25]
[1754677470887,3.08,179.35,179.34,3.25]
[1754677471991,12.49272977,179.36,179.35,3.25]
[1754677472590,12.49272977,179.36,179.35,12.73922744]
[1754677472591,0.04092641,179.36,179.35,12.73922744]
[1754677474392,3.12092641,179.36,179.35,7.16442744]
[1754677475290,3.12092641,179.36,179.35,12.73922744]
[1754677475893,0.04092641,179.36,179.35,12.73922744]
[1754677477792,0.04092641,179.36,179.35,7.16442744]
[1754677478003,8.69542641,179.36,179.35,3.91442744]
[1754677478390,3.12092641,179.36,179.35,3.91442744]
[1754677479194,7.09475908,179.36,179.35,3.91442744]
[1754677479592,12.66925908,179.36,179.35,3.91442744]
[1754677479897,12.66925908,179.36,179.33,15.7]
[1754677479898,13.38656244,179.36,179.33,16.44442744]
[1754677480100,3.08,179.34,179.33,16.44442744]
[1754677480299,7.05383267,179.34,179.33,16.44442744]
[1754677480694,7.05383267,179.34,179.33,12.53]
[1754677480896,7.05383267,179.34,179.33,16.44442744]
[1754677481293,12.62893267,179.34,179.33,16.44442744]
[1754677481494,12.62893267,179.34,179.33,12.53]
[1754677481692,3.97383267,179.34,179.22,3.17]
[1754677482002,9.35867786,179.32,179.27,3.91442744]
[1754677482197,3.08,179.3,179.28,3.17]
[1754677482501,7.05383267,179.29,179.28,3.17]
[1754677483196,3.08,179.28,179.27,7.08442744]
[1754677483400,7.05383267,179.28,179.27,3.91442744]
[1754677484101,12.63083267,179.28,179.27,3.91442744]
[1754677485295,3.08,179.26,179.25,3.91442744]
[1754677485497,7.05383267,179.26,179.25,7.08442744]
[1754677485804,3.97383267,179.26,179.25,12.66232744]
[1754677486103,3.08,179.31,179.26,3.17]
[1754677486296,3.08,179.31,179.29,3.17]
[1754677486492,3.08,179.31,179.3,3.91442744]
[1754677486702,12.43867786,179.34,179.3,3.91442744]
[1754677486897,18.01387786,179.34,179.33,3.91442744]
[1754677488004,3.08,179.32,179.3,8.7463]
[1754677488198,3.08,179.32,179.31,3.91442744]
[1754677488399,3.08,179.32,179.31,7.08442744]
[1754677488601,3.08,179.32,179.31,3.91442744]
[1754677489901,3.08,179.32,179.31,7.08442744]
[1754677490400,3.08,179.34,179.31,3.91442744]
[1754677490598,3.08,179.34,179.33,7.08442744]
[1754677490903,3.08,179.34,179.33,3.91442744]
[1754677491098,3.08,179.34,179.31,3.17]
[1754677491295,3.08,179.33,179.31,3.91442744]
[1754677491498,3.08,179.32,179.31,3.91442744]
[1754677491702,8.656,179.32,179.29,9.49102744]
[1754677491901,3.08,179.31,179.22,3.17]
[1754677492206,3.91442744,179.34,179.25,9.49212744]
[1754677492207,3.08,179.27,179.25,9.49212744]
[1754677492602,3.08,179.26,179.25,9.49212744]
[1754677493200,3.08,179.26,179.24,12.66252744]
[1754677493504,3.08,179.26,179.25,3.17]
[1754677493706,3.08,179.27,179.25,5.5777]
[1754677493903,3.08,179.27,179.26,3.17]
[1754677494505,0.04044358,179.28,179.26,12.66202744]
[1754677494699,3.12044358,179.28,179.27,3.17]
[1754677495101,3.12044358,179.28,179.26,9.49202744]
[1754677495502,3.12044358,179.28,179.27,3.17]
[1754677495901,3.12044358,179.28,179.27,8.7473]
[1754677496106,0.04044358,179.28,179.27,8.7473]
[1754677497408,0.04044358,179.28,179.27,12.66172744]
[1754677497903,3.08,179.32,179.28,3.17]
[1754677498108,9.35867786,179.33,179.31,3.91442744]
[1754677498299,3.08,179.34,179.32,3.17]
[1754677498504,3.89273952,179.33,179.32,8.7455]
[1754677499007,3.89273952,179.33,179.32,5.5755]
[1754677499008,3.89273151,179.33,179.32,5.5755]
[1754677499599,3.89273151,179.33,179.32,8.7455]
[1754677500802,6.97273151,179.33,179.32,8.7455]
[1754677501108,3.08,179.32,179.31,145.70990029]
[1754677501307,6.97273151,179.32,179.31,145.70990029]
[1754677501507,6.97273151,179.32,179.31,154.45600029]
[1754677501805,3.89273151,179.32,179.31,154.45600029]
[1754677502010,6.97273151,179.32,179.31,145.70990029]
[1754677502305,6.97273151,179.32,179.31,0.03547285]
[1754677502512,3.08,179.31,179.26,3.91442744]
[1754677502710,5.5773,179.28,179.26,3.91442744]
[1754677502904,3.08,179.26,179.24,9.49242744]
[1754677503101,3.89273151,179.25,179.24,12.66242744]
[1754677503407,6.97273151,179.25,179.24,3.91442744]
[1754677503810,6.97273151,179.25,179.24,7.08442744]
[1754677504310,3.89273151,179.25,179.24,12.66262744]
[1754677505608,3.89273151,179.25,179.23,3.95]
[1754677505814,6.97273151,179.24,179.23,7.86442744]
[1754677506612,6.97273151,179.24,179.23,13.44302744]
[1754677506808,6.97273151,179.24,179.23,3.95]
[1754677507216,12.55093151,179.24,179.23,1.51347286]
[1754677507511,12.55093151,179.24,179.14,3.91442744]
[1754677507512,3.19,179.23,179.14,3.91442744]
[1754677507720,3.19,179.2,179.13,3.91442744]
[1754677507907,3.19,179.18,179.11,145.63442744]
[1754677508107,3.89273151,179.19,179.11,145.63442744]
[1754677508108,3.19,179.16,179.11,141.72]
[1754677508303,3.89488653,179.17,179.09,3.91442744]
[1754677508304,3.19,179.11,179.09,3.91442744]
[1754677508511,7.08488653,179.1,179.09,3.91442744]
[1754677508806,3.89108858,179.1,179.09,3.91442744]
[1754677509305,3.89108858,179.1,179.09,9.49722744]
[1754677509512,3.89108858,179.1,179.09,12.62722744]
[1754677509906,7.08108858,179.1,179.09,3.91442744]
[1754677510102,3.89108858,179.1,179.07,3.91442744]
[1754677510310,3.19,179.08,179.07,3.91442744]
[1754677510508,7.08108858,179.08,179.07,3.91442744]
[1754677510709,3.89108858,179.08,179.07,5.5833]
[1754677510914,3.89108858,179.08,179.07,15.11512827]
[1754677511109,3.88185955,179.08,179.07,9.53182827]
[1754677511314,7.07185955,179.08,179.07,5.5835]
[1754677512810,3.88185955,179.08,179.07,8.7135]
[1754677514215,7.07185955,179.08,179.07,8.7135]
[1754677515616,3.88185955,179.08,179.07,8.7135]
[1754677517317,7.07185955,179.08,179.07,8.7135]
[1754677517519,7.07185955,179.08,179.07,5.5835]
[1754677517716,7.07185955,179.08,179.07,8.7135]
[1754677517913,7.07185955,179.08,179.07,5.5835]
[1754677518115,3.88185955,179.08,179.04,10.50197128]
[1754677518312,3.19,179.06,179.02,9.53182827]
[1754677518512,3.88185955,179.05,179.03,3.13]
[1754677518713,3.19,179.07,179.06,5.5838]
[1754677518914,3.85772506,179.07,179.02,144.87]
[1754677519113,6.40182827,179.13,179.03,6.40182827]
[1754677519114,3.89405753,179.06,179.03,6.40182827]
[1754677519416,3.19,179.04,179.03,11.98662827]
[1754677519613,3.19,179.04,179.03,5.5848]
[1754677519916,3.19,179.03,178.94,195.70275342]
[1754677520110,3.19,179.01,178.94,195.70275342]
[1754677520312,3.85605372,179.0,178.94,195.70275342]
[1754677520514,3.19,178.98,178.97,5.5864]
[1754677520710,3.19,179.0,178.97,6.40182827]
[1754677521012,3.85241542,179.07,179.0,3.13]
[1754677521218,3.19,179.05,179.01,6.40182827]
[1754677521419,3.19,179.03,179.0,141.74]
[1754677521620,7.04076981,179.02,179.0,151.27182827]
[1754677521819,3.19,179.18,179.01,3.13]
[1754677522021,6.40182827,179.15,179.04,6.40182827]
[1754677522219,3.19,179.09,179.04,9.53182827]
[1754677522414,3.19,179.06,179.04,6.40182827]
[1754677522616,3.19,179.08,179.05,9.53182827]
[1754677522827,3.19,179.2,179.07,6.40182827]
[1754677523022,3.19,179.2,179.08,3.13]
[1754677523218,3.19,179.2,179.11,6.40182827]
[1754677523419,3.19,179.2,179.13,6.40182827]
[1754677524028,3.19,179.18,179.13,6.40182827]
[1754677524719,3.19,179.18,179.14,0.03562644]
[1754677524914,5.5807,179.17,179.14,0.03562644]
[1754677525121,3.19,179.16,179.14,0.03562644]
[1754677525717,3.19,179.22,179.14,0.03562644]
[1754677527317,5.581,179.15,179.14,0.03562644]
[1754677527522,8.771,179.15,179.14,0.03562644]
[1754677528716,6.40182827,179.17,179.08,6.40182827]
[1754677529025,3.19,179.15,179.08,6.40182827]
[1754677529426,3.19,179.15,179.08,9.53182827]
[1754677530329,3.19,179.14,179.08,3.13]
[1754677530831,3.19,179.14,179.09,9.53182827]
[1754677531031,3.19,179.14,179.02,141.72]
[1754677531032,3.19,179.14,179.05,6.40182827]
[1754677531329,11.1584,179.21,179.02,141.72]
[1754677531330,3.19,179.12,179.02,141.72]
[1754677531521,3.19,179.04,179.02,151.25182827]
[1754677531725,6.44409953,179.11,179.03,3.13]
[1754677531923,3.19,179.09,179.03,3.13]
[1754677532128,3.19,179.09,179.02,148.12182827]
[1754677532322,3.22538121,179.09,179.02,148.12182827]
[1754677532624,8.7747,179.04,179.02,9.53182827]
[1754677533028,8.7746,179.04,179.02,9.53182827]
[1754677533229,3.19,179.04,179.02,9.53182827]
[1754677533529,5.585,179.03,179.01,3.13]
[1754677533733,8.775,179.03,179.01,3.13]
[1754677533927,3.22655596,179.05,179.01,3.13]
[1754677534231,8.81095596,179.05,179.03,3.13]
[1754677534622,0.03655596,179.05,179.03,3.13]
[1754677534824,0.03655596,179.05,179.04,3.13]
[1754677535129,9.41992151,179.05,179.04,3.13]
[1754677535325,12.60992151,179.05,179.04,3.13]
[1754677535525,7.02572151,179.05,179.04,3.13]
[1754677535728,3.83572151,179.05,179.04,3.13]
[1754677535929,3.19,179.04,179.02,9.53182827]
[1754677536129,3.79916555,179.03,179.02,9.53182827]
[1754677536340,3.25,179.02,179.0,9.57182827]
[1754677536630,3.25,179.04,179.01,3.17]
[1754677536834,12.63575131,179.03,179.01,3.17]
[1754677537030,3.80095131,179.02,179.01,3.17]
[1754677537836,7.05095131,179.02,178.98,3.17]
[1754677538036,7.05106444,179.01,178.99,9.57182827]
[1754677538334,6.40182827,179.09,178.99,9.57182827]
[1754677538335,3.25,179.06,179.01,3.17]
[1754677538532,8.8347,179.04,179.02,3.17]
[1754677538730,3.80131769,179.03,179.02,3.17]
[1754677538928,7.05131769,179.03,179.02,3.17]
[1754677539127,3.80131769,179.03,179.02,3.17]
[1754677540228,3.80131769,179.03,179.02,5.5851]
[1754677540427,3.25,179.12,179.03,3.17]
[1754677540629,3.80192243,179.11,179.06,6.40182827]
[1754677540830,7.05192243,179.1,179.08,6.40182827]
[1754677541035,7.05192243,179.09,179.08,6.40182827]
[1754677541539,7.05192243,179.09,179.08,9.57182827]
[1754677541738,7.05192243,179.09,179.08,6.40182827]
[1754677542336,7.05192243,179.09,179.06,6.40182827]
[1754677542537,3.25,179.06,179.04,9.57182827]
[1754677542740,3.80192243,179.05,179.04,9.57182827]
[1754677543042,3.25,179.1,179.05,3.17]
[1754677543236,6.40182827,179.19,179.09,6.40182827]
[1754677543437,6.40182827,179.19,179.02,141.7]
[1754677543438,3.25,179.13,179.11,6.40182827]
[1754677543642,3.25,179.2,179.1,3.17]
[1754677543839,3.25,179.2,179.08,3.17]
[1754677544038,3.25,179.18,179.09,6.40182827]
[1754677544241,6.40182827,179.17,179.07,6.40182827]
[1754677544440,3.25,179.16,179.05,3.17]
[1754677544640,6.40182827,179.15,179.05,9.57182827]
[1754677544829,8.8336,179.07,179.05,9.57182827]
[1754677545035,3.25,179.09,179.07,3.17]
[1754677545537,3.25,179.11,179.07,6.40182827]
[1754677545738,3.25,179.11,179.09,9.57182827]
[1754677546041,3.25,179.18,179.1,3.17]
[1754677546336,3.25,179.18,179.11,6.40182827]
[1754677546536,5.5819,179.13,179.11,6.40182827]
[1754677546743,3.25,179.15,179.11,6.40182827]
[1754677546934,3.25,179.22,179.13,6.40182827]
[1754677547136,3.25,179.12,179.11,6.40182827]
[1754677547839,3.25,179.12,179.11,9.57182827]
[1754677548049,0.03925258,179.15,179.11,6.40182827]
[1754677548244,3.28925258,179.15,179.13,9.57182827]
[1754677548545,8.87045258,179.15,179.13,9.57182827]
[1754677548843,12.4646887,179.27,179.13,9.57182827]
[1754677548844,9.3624667,179.24,179.14,3.17]
[1754677549048,3.25,179.23,179.18,6.40182827]
[1754677549246,5.5798,179.19,179.18,6.40182827]
[1754677549544,3.25,179.21,179.19,3.17]
[1754677549748,5.5795,179.2,179.19,3.17]
[1754677549940,3.25,179.19,179.18,6.40182827]
[1754677550144,3.25,179.19,179.18,6.44026533]
[1754677550847,8.8298,179.19,179.18,6.44026533]
[1754677551939,8.8298,179.19,179.18,3.706e-05]
[1754677552445,18.1922667,179.19,179.18,3.706e-05]
[1754677552649,0.04095221,179.2,179.11,9.57182827]
[1754677552650,6.44278048,179.2,179.11,6.40182827]
[1754677552842,3.25,179.12,179.1,3.17]
[1754677553035,9.35536639,179.17,179.09,6.40182827]
[1754677553237,3.25,179.16,179.09,6.40182827]
[1754677553438,3.25,179.16,179.09,9.57182827]
[1754677554438,9.35536639,179.16,179.08,6.40182827]
[1754677554644,3.25,179.14,179.08,6.40182827]
[1754677554842,5.5829,179.09,179.08,6.40182827]
[1754677555143,3.25,179.09,179.06,9.57182827]
[1754677555645,3.25,179.09,179.07,3.17]
[1754677555840,5.5827,179.1,179.06,11.98542827]
[1754677556143,3.25,179.13,179.07,3.17]
[1754677556345,8.8332,179.09,179.07,3.17]
[1754677557147,5.5832,179.08,179.07,3.17]
[1754677557449,3.25,179.11,179.06,6.40182827]
[1754677557654,3.25,179.11,179.09,3.17]
[1754677557854,12.60536639,179.13,179.06,9.57182827]
[1754677558048,3.25,179.12,179.06,9.57182827]
[1754677558449,3.25,179.12,179.06,15.15552827]
[1754677559253,5.5832,179.09,179.06,11.98552827]
[1754677559447,8.8332,179.09,179.06,11.98552827]
[1754677559649,12.60536639,179.13,179.1,3.17]
[1754677559851,9.35536639,179.15,179.1,6.40182827]
[1754677560154,9.35536639,179.13,179.07,3.17]
[1754677560348,5.5831,179.09,179.07,3.17]
[1754677560543,3.25,179.09,179.06,6.40182827]
[1754677560746,3.25,179.11,179.08,3.17]
[1754677560946,9.35536639,179.11,179.04,3.17]
[1754677561146,3.25,179.1,179.04,3.17]
[1754677561350,9.35536639,179.1,179.04,6.40182827]
[1754677561542,9.35536639,179.11,179.05,3.17]
[1754677561748,3.25,179.1,179.04,6.40182827]
[1754677561950,3.25,179.09,179.04,6.40182827]
[1754677562152,3.25,179.09,179.04,9.57182827]
[1754677562549,3.25,179.08,179.06,3.17]
[1754677562753,3.25,179.08,179.04,6.40182827]
[1754677563053,8.8334,179.08,179.06,6.40182827]
[1754677563258,8.8334,179.08,179.06,9.57182827]
[1754677563553,3.25,179.08,179.06,9.57182827]
[1754677563944,9.35536639,179.09,179.02,9.57182827]
[1754677564153,3.25,179.05,179.02,6.40182827]
[1754677564552,9.35536639,179.08,179.01,6.40182827]
[1754677564753,3.25,179.02,179.0,3.17]
[1754677565151,9.35536639,179.07,179.01,3.17]
[1754677565362,3.25,179.04,179.02,3.17]
[1754677565656,8.8346,179.04,179.02,3.17]
[1754677566052,8.5648,179.03,179.02,3.17]
[1754677566259,8.5648,179.03,178.97,610.12]
[1754677566260,9.35536639,179.03,178.97,610.12]
[1754677566554,2.98,179.0,178.98,9.63182827]
[1754677566963,12.33536639,179.01,178.97,3.23]
[1754677567255,2.98,179.01,178.96,11.98872827]
[1754677567445,2.98,179.0,178.96,9.63182827]
[1754677567647,0.04102286,179.0,178.96,6.40182827]
[1754677567856,2.98,178.99,178.97,3.23]
[1754677568160,0.04102286,179.0,178.96,3.23]
[1754677568355,2.98,178.98,178.96,3.23]
[1754677568952,2.98,178.98,178.97,3.23]
[1754677569360,2.98,178.97,178.95,9.63182827]
[1754677569556,12.33536639,178.99,178.94,195.70275342]
[1754677569755,12.33536639,178.99,178.93,6.40182827]
[1754677569756,2.98,178.98,178.93,6.40182827]
[1754677569958,12.33536639,178.98,178.92,3.23]
[1754677570163,2.98,178.97,178.92,3.23]
[1754677570464,2.98,178.96,178.91,147.96182827]
[1754677570658,2.98,178.96,178.89,6.40182827]
[1754677570862,9.35536639,178.97,178.87,6.40182827]
[1754677570863,5.589,178.9,178.87,6.40182827]
[1754677571163,2.98,178.93,178.85,3.23]
[1754677571358,2.98,178.9,178.84,141.54]
[1754677571664,9.35536639,178.88,178.79,6.40182827]
[1754677571965,2.98,178.85,178.83,3.23]